lending/lending_fUSD_20260328
["ID","MTS","AMOUNT","RATE_DAILY","PERIOD"]
[418965757,1774679442197,-2942.25471874,0.00015743,2]
[418965758,1774679442207,-1356.53806687,0.00015744,2]
[418965759,1774679442216,-158.98,0.00015753,2]
[418965760,1774679442226,-333.67475347,0.00015768,2]
[418965761,1774679442235,-1500.0,0.00015768,2]
[418965762,1774679442244,-380.0,0.00015773,2]
[418965763,1774679442254,-152.0,0.00015779,4]
[418965764,1774679442263,-1100.0,0.000158,5]
[418965765,1774679442272,-348.0,0.00015833,2]
[418965766,1774679442281,-1042.0,0.00015839,2]
[418965767,1774679442290,-500.0,0.0001585,2]
[418965768,1774679442299,-2000.0,0.0001585,2]
[418965769,1774679442318,-380.0,0.00015858,2]
[418965770,1774679442328,-332.58486862,0.00015868,2]
[418965771,1774679442338,-1500.0,0.00015868,2]
[418965772,1774679442347,-2056.05,0.00015895,2]
[418965773,1774679442357,-2000.0,0.00015898,2]
[418965774,1774679442366,-1356.53806687,0.000159,2]
[418965775,1774679442375,-1100.0,0.000159,5]
[418965776,1774679442386,-4751.79404621,0.000159,2]
[418965777,1774679442398,-2942.25471874,0.000159,2]
[418965778,1774679442407,-380.0,0.00015902,2]
[418965779,1774679442417,-476.51346953,0.00015941,2]
[418965780,1774679442426,-500.0,0.0001597,2]
[418965781,1774679442436,-400.0,0.0001597,2]
[418965782,1774679442446,-500.0,0.00015973,2]
[418965783,1774679442457,-500.0,0.00015973,2]
[418965784,1774679442466,-380.0,0.00015996,2]
[418965785,1774679442476,-202890.5847053,0.00016,2]
[418965786,1774679442504,-300146.745044,0.00016,2]
[418965793,1774679443287,-213.90253932,0.0001449,2]
[418965794,1774679443297,-154.59667368,0.00016,2]
[418965795,1774679443463,-151.1345173,0.00015607,2]
[418965796,1774679443474,-1960.91983554,0.00016,2]
[418965797,1774679443486,-1367.77221999,0.00016,2]
[418965798,1774679443498,-734.12254291,0.00016,2]
[418965799,1774679443510,-6150.40569559,0.00016,2]
[418965800,1774679443522,-6043.38885924,0.00016,2]
[418965806,1774679446299,-349.8,0.00016,2]
[418965807,1774679446364,-57043.14035002,0.00016,2]
[418965808,1774679446375,-98163.89682685,0.00016,2]
[418965809,1774679446430,-1395.25197788,0.00016,2]
[418965810,1774679446496,-37336.1643656,0.00016,2]
[418965811,1774679446508,-378224.44831334,0.00016,2]
[418965812,1774679446702,213.68,0.00016,120]
[418965815,1774679471389,290.04,0.00013872,2]
[418965817,1774679473033,500.0,0.00014356,2]
[418965822,1774679520355,200.0,0.00014356,2]
[418965823,1774679534142,908.37,0.00013829,2]
[418965826,1774679626586,10000.01,0.00014377,2]
[418965827,1774679626614,10000.01,0.00014377,2]
[418965828,1774679633682,-9209.97,0.00014377,2]
[418965829,1774679633829,-10000.01,0.00014377,2]
[418965830,1774679637026,192.31,0.00016,120]
[418965831,1774679709535,-166.66,0.00013797,2]
[418965832,1774679709560,-166.66,0.00014088,2]
[418965833,1774679709585,-500.0,0.00014356,2]
[418965834,1774679709610,-1200.0,0.00014375,2]
[418965835,1774679709635,-500.0,0.00014376,2]
[418965836,1774679709659,-557.99569654,0.00014376,2]
[418965837,1774679709684,-450.09650854,0.00014376,2]
[418965838,1774679709708,-500.0,0.00014376,2]
[418965839,1774679709737,-500.0,0.00014376,2]
[418965840,1774679709767,-500.0,0.00014376,2]
[418965841,1774679709794,-472.18058073,0.00014376,2]
[418965842,1774679709818,-299.187859,0.00014376,2]
[418965843,1774679709841,-1025.01196795,0.00014376,5]
[418965844,1774679709866,-473162.20738724,0.00014377,2]
[418965845,1774679813772,1388.81,7.098e-05,2]
[418965846,1774679813960,1388.81,7.471e-05,2]
[418965847,1774679814159,1388.81,7.845e-05,2]
[418965848,1774679814360,833.58,8.218e-05,2]
[418965849,1774679814390,555.23,8.218e-05,2]
[418965850,1774679815558,-1388.81,8.592e-05,2]
[418965851,1774679815587,-833.58,8.965e-05,2]
[418965852,1774679827695,173.08,0.00016,120]
[418965853,1774679840130,854.0,8.752e-05,2]
[418965856,1774679890489,-555.23,8.965e-05,2]
[418965857,1774679890519,-1388.81,9.339e-05,2]
[418965858,1774679890549,-1388.81,9.713e-05,2]
[418965859,1774679890579,-183.27834331,9.713e-05,2]
[418965860,1774679890668,-2967.75331338,9.862e-05,2]
[418965861,1774679896411,-2032.24668662,9.862e-05,2]
[418965862,1774679896441,-250.0,9.862e-05,2]
[418965863,1774679896473,-1388.81,0.00010086,2]
[418965864,1774679896503,-176.68,0.00010287,2]
[418965865,1774679896534,-915.72662676,0.0001046,2]
[418965866,1774679896619,-473.08337324,0.0001046,2]
[418965867,1774679899421,-1388.81,0.00010833,2]
[418965868,1774679899454,-1388.81,0.00011207,2]
[418965869,1774679899485,-1388.81,0.0001158,2]
[418965870,1774679899516,-150.0,0.000119,2]
[418965871,1774679899601,-1367.15,0.00011954,2]
[418965872,1774679901793,700.0,8.522e-05,2]
[418965873,1774679902302,601.39,9.214e-05,2]
[418965874,1774679902458,-21.66,0.00011954,2]
[418965875,1774679902492,-1388.81,0.00012327,2]
[418965876,1774679902521,-189.51,0.00012407,2]
[418965877,1774679902551,-1388.81,0.00012701,2]
[418965878,1774679902582,-1388.81,0.00013075,2]
[418965879,1774679902680,-1244.81,0.00013187,2]
[418965880,1774679902818,786.15,0.00010124,2]
[418965881,1774679911955,-607.61,0.00013187,2]
[418965882,1774679911988,-1184.46,0.0001329,2]
[418965883,1774679933516,523.0,0.00013111,2]
[418965884,1774679939056,250.0,0.000113,5]
[418965885,1774680005217,319.0,0.00013438,2]
[418965886,1774680019226,155.78,0.00016,120]
[418965888,1774680210726,150.0,0.00016,120]
[418965889,1774680253809,-185.0,0.00013438,2]
[418965890,1774680253851,-157.0,0.00013438,2]
[418965891,1774680253889,-157.0,0.00013438,2]
[418965892,1774680253927,-157.0,0.00013438,2]
[418965893,1774680253964,-160.0,0.00013438,2]
[418965894,1774680254015,-160.0,0.0001344,3]
[418965895,1774680254060,-1388.81,0.00013448,2]
[418965896,1774680254101,-183.27834331,0.00013535,2]
[418965897,1774680254142,-1186.66673354,0.00013635,2]
[418965898,1774680254181,-530.4998463,0.00013687,2]
[418965899,1774680254334,-1469.5001537,0.00013687,2]
[418965900,1774680254375,-300.0,0.00013821,2]
[418965901,1774680254411,-1388.81,0.00013822,2]
[418965902,1774680254650,-157.0,0.00013975,3]
[418965903,1774680254681,-1200.0,0.00014194,2]
[418965904,1774680254880,-112.5001537,0.00014195,2]
[418965905,1774680254910,-157.0,0.00014195,2]
[418965906,1774680254929,-1119.3098463,0.00014195,2]
[418965907,1774680254938,-80.6901537,0.00014195,2]
[418965908,1774680254965,-969.3896926,0.00014195,2]
[418965909,1774680256510,-10000.01,0.00014195,2]
[418965910,1774680293284,524.0,0.00013111,2]
[418965912,1774680305625,158.0,0.00014185,2]
[418965913,1774680305921,158.0,0.00014185,2]
[418965914,1774680306165,158.0,0.00014185,2]
[418965915,1774680308717,160.0,0.00014185,2]
[418965916,1774680310801,179.0,0.00014185,2]
[418965917,1774680366992,158.0,0.00014185,2]
[418965918,1774680367232,158.0,0.00014185,2]
[418965919,1774680369323,161.0,0.00014185,2]
[418965920,1774680394086,720.0,0.00013219,2]
[418965921,1774680401146,150.0,0.00016,120]
[418965922,1774680424925,158.0,0.00014185,2]
[418965923,1774680427301,161.0,0.00014185,2]
[418965924,1774680456093,170.48485285,0.00014095,2]
[418965925,1774680486924,158.0,0.00014185,2]
[418965926,1774680497449,-1200.0,0.00014194,2]
[418965927,1774680497479,-300.0,0.00014194,2]
[418965928,1774680497510,-150.0,0.00014194,2]
[418965929,1774680519830,-1209.84514715,0.00014195,2]
[418965930,1774680522742,-5000.01,0.00014195,2]
[418965931,1774680525762,-5000.01,0.00014195,2]
[418965932,1774680528550,150.311,0.00014194,2]
[418965933,1774680528927,-5000.01,0.00014195,2]
[418965934,1774680529219,1200.0,0.00014194,2]
[418965935,1774680531802,-5000.01,0.00014195,2]
[418965936,1774680534954,-5000.01,0.00014195,2]
[418965937,1774680538110,-5000.01,0.00014195,2]
[418965938,1774680541012,-5000.01,0.00014195,2]
[418965939,1774680541571,300.0,0.00014194,2]
[418965940,1774680543914,-5000.01,0.00014195,2]
[418965941,1774680546939,159.0,0.00014195,2]
[418965942,1774680547040,-5000.01,0.00014195,2]
[418965943,1774680549949,-5000.01,0.00014195,2]
[418965944,1774680555653,-5000.01,0.00014195,2]
[418965945,1774680555978,-5000.01,0.00014195,2]
[418965946,1774680563852,-5000.01,0.00014195,2]
[418965947,1774680565014,-5000.01,0.00014195,2]
[418965948,1774680565227,150.0,0.00014195,2]
[418965949,1774680568594,-5000.01,0.00014195,2]
[418965950,1774680571048,-5000.01,0.00014195,2]
[418965951,1774680574171,-5000.01,0.00014195,2]
[418965952,1774680577088,-5000.01,0.00014195,2]
[418965953,1774680580265,-5000.01,0.00014195,2]
[418965954,1774680583188,-5000.01,0.00014195,2]
[418965955,1774680589219,-5000.01,0.00014195,2]
[418965956,1774680590816,150.0,0.00016,120]
[418965957,1774680595261,-5000.01,0.00014195,2]
[418965958,1774680597289,163.64,0.00013649,2]
[418965959,1774680601148,322.0,0.00014194,2]
[418965960,1774680601339,-5000.01,0.00014195,2]
[418965961,1774680603515,333.0,0.00014195,2]
[418965962,1774680605067,179.0,0.00014195,2]
[418965963,1774680613417,-5000.01,0.00014195,2]
[418965964,1774680632324,-1652.648,0.00014195,2]
[418965965,1774680632497,-4705.26413831,0.00014195,2]
[418965966,1774680632545,-675.352,0.00014195,2]
[418965971,1774680638355,-9149.71086824,0.00014195,2]
[418965972,1774680638364,-299.99,0.00014195,2]
[418965973,1774680638374,-219.17253127,0.000142,2]
[418965974,1774680638417,-8050.5652729,0.000142,2]
[418965975,1774680638427,-150.0,0.00014278,2]
[418965976,1774680638436,-4157.81979046,0.00014278,2]
[418965977,1774680638445,-2648.02924692,0.00014278,2]
[418965978,1774680638455,-200.0,0.00014308,2]
[418965979,1774680638464,-3240.0,0.00014319,2]
[418965980,1774680638474,-500.0,0.00014356,2]
[418965981,1774680638484,-500.0,0.00014356,2]
[418965982,1774680638493,-151.0,0.00014368,2]
[418965983,1774680638503,-151.0,0.00014368,2]
[418965984,1774680638512,-151.0,0.00014368,2]
[418965985,1774680638522,-151.0,0.00014368,2]
[418965986,1774680638532,-151.0,0.00014368,2]
[418965987,1774680638541,-151.0,0.00014368,2]
[418965988,1774680638550,-151.0,0.00014368,2]
[418965989,1774680638560,-151.0,0.00014368,2]
[418965990,1774680638570,-151.0,0.00014368,2]
[418965991,1774680638579,-151.0,0.00014368,2]
[418965992,1774680638588,-151.0,0.00014368,2]
[418965993,1774680638599,-151.0,0.00014368,2]
[418965994,1774680638609,-151.0,0.00014368,2]
[418965995,1774680638618,-151.0,0.00014368,2]
[418965996,1774680638629,-151.0,0.00014368,2]
[418965997,1774680638638,-151.0,0.00014368,2]
[418965998,1774680638649,-151.0,0.00014368,2]
[418965999,1774680638659,-151.0,0.00014368,2]
[418966000,1774680638668,-151.0,0.00014368,2]
[418966001,1774680638678,-153.55815315,0.00014368,2]
[418966002,1774680638688,-169.45157305,0.00014373,2]
[418966003,1774680638698,-500.0,0.00014373,2]
[418966004,1774680638708,-500.0,0.00014373,2]
[418966005,1774680638718,-500.0,0.00014373,2]
[418966006,1774680638728,-500.0,0.00014373,2]
[418966007,1774680638738,-166.66,0.00014378,2]
[418966008,1774680638748,-161.0,0.000144,2]
[418966009,1774680638758,-1570.0,0.000144,2]
[418966011,1774680638767,-161.0,0.000144,2]
[418966013,1774680638777,-94904.49,0.000144,2]
[418966015,1774680638787,-1266.38,0.000144,2]
[418966033,1774680638937,-17437.78,0.000144,2]
[418966036,1774680638985,-500.0,0.00014405,2]
[418966038,1774680638995,-2807.0,0.00014406,2]
[418966040,1774680639005,-6454.74,0.00014406,2]
[418966042,1774680639014,-2807.0,0.00014407,2]
[418966044,1774680639023,-9211.34798985,0.00014425,2]
[418966046,1774680639032,-221.04,0.00014452,2]
[418966048,1774680639041,-2648.02924686,0.00014458,2]
[418966050,1774680639051,-500.0,0.00014458,2]
[418966052,1774680639060,-4476.98166723,0.0001448,2]
[418966053,1774680639069,-4157.81979043,0.0001451,2]
[418966055,1774680639079,-2648.02924686,0.00014638,2]
[418966056,1774680639088,-166.66,0.00014669,2]
[418966057,1774680639097,-165.99982076,0.00014692,2]
[418966058,1774680639107,-500.0,0.00014692,2]
[418966059,1774680639116,-500.0,0.00014692,2]
[418966060,1774680639125,-380.80809247,0.00014692,2]
[418966061,1774680639135,-500.0,0.00014692,2]
[418966062,1774680639144,-2807.0,0.00014727,2]
[418966063,1774680639153,-500.0,0.00014732,2]
[418966064,1774680639162,-4157.81979043,0.00014741,2]
[418966065,1774680639172,-2648.02924686,0.00014819,2]
[418966066,1774680639181,-154.46961228,0.0001487,2]
[418966067,1774680639191,-151.9001,0.000149,2]
[418966068,1774680639200,-1008.47953738,0.00014921,2]
[418966069,1774680639210,-1184.46,0.00014951,2]
[418966070,1774680639222,-166.66,0.00014959,2]
[418966071,1774680639232,-4157.81979043,0.00014973,2]
[418966072,1774680639241,-1351.449,0.00014978,2]
[418966073,1774680639251,-621.0,0.00014978,2]
[418966074,1774680639260,-1051.035,0.00014978,2]
[418966075,1774680639269,-1262.0,0.00014978,2]
[418966076,1774680639280,-150.0,0.00014978,2]
[418966077,1774680639290,-3765.0,0.00014978,2]
[418966078,1774680639299,-415.0,0.00014978,2]
[418966079,1774680639308,-2648.02924686,0.00014999,2]
[418966080,1774680639318,-500.0,0.00015,2]
[418966081,1774680639327,-500.0,0.00015,2]
[418966082,1774680639336,-500.0,0.00015,2]
[418966083,1774680639345,-500.0,0.00015,2]
[418966084,1774680639354,-500.0,0.00015,2]
[418966085,1774680639364,-586.43,0.00015,2]
[418966086,1774680639373,-500.0,0.00015,2]
[418966087,1774680639382,-500.0,0.00015,2]
[418966088,1774680639391,-500.0,0.00015,2]
[418966089,1774680639400,-500.0,0.00015,2]
[418966090,1774680639409,-500.0,0.00015,2]
[418966091,1774680639419,-500.0,0.00015,2]
[418966092,1774680639428,-376.2,0.00015,2]
[418966093,1774680639437,-500.0,0.00015,2]
[418966094,1774680639446,-466.53,0.00015,2]
[418966095,1774680639455,-500.0,0.00015006,2]
[418966096,1774680639465,-163.64,0.00015013,2]
[418966097,1774680639474,-1570.0,0.0001504,2]
[418966098,1774680639483,-161.0,0.0001504,2]
[418966099,1774680639492,-500.0,0.0001505,2]
[418966100,1774680639502,-225.19,0.00015068,2]
[418966101,1774680639511,-175.3344343,0.00015147,2]
[418966102,1774680639520,-167.0190456,0.00015147,2]
[418966103,1774680639529,-2648.02924686,0.00015179,2]
[418966104,1774680639539,-4157.81979043,0.00015205,2]
[418966105,1774680639547,-500.0,0.0001524,2]
[418966106,1774680639556,-166.66,0.0001525,2]
[418966107,1774680639565,-179.807,0.00015266,2]
[418966108,1774680639575,-1966.146,0.00015266,2]
[418966109,1774680639584,-466.53,0.00015274,2]
[418966110,1774680639593,-500.0,0.0001528,2]
[418966111,1774680639602,-800.0,0.000153,5]
[418966112,1774680639611,-255.0,0.00015316,2]
[418966113,1774680639620,-235.0,0.00015329,2]
[418966114,1774680639629,-2648.02924686,0.00015359,2]
[418966115,1774680639639,-1570.0,0.00015366,2]
[418966116,1774680639648,-500.0,0.00015373,2]
[418966117,1774680639657,-500.44640306,0.00015373,2]
[418966118,1774680639666,-500.0,0.00015373,2]
[418966119,1774680639675,-500.0,0.00015373,2]
[418966120,1774680639684,-235.0,0.00015379,2]
[418966121,1774680639693,-350.0,0.00015386,2]
[418966122,1774680639702,-2000.0,0.00015397,2]
[418966123,1774680639712,-1600.0,0.000154,5]
[418966124,1774680639722,-4157.81979043,0.00015437,2]
[418966125,1774680639731,-235.0,0.00015453,2]
[418966126,1774680639740,-228.0,0.00015478,2]
[418966127,1774680639749,-228.0,0.00015485,2]
[418966128,1774680639758,-3195.5691866,0.00015496,2]
[418966129,1774680639768,-2400.0,0.000155,5]
[418966130,1774680639778,-2158.86,0.00015507,2]
[418966131,1774680639790,-235.0,0.00015507,2]
[418966132,1774680639800,-2648.02924686,0.0001554,2]
[418966133,1774680639811,-466.53,0.00015548,2]
[418966134,1774680639823,-235.0,0.00015573,2]
[418966135,1774680639833,-1000.0,0.00015598,2]
[418966136,1774680639843,-3300.0,0.000156,5]
[418966137,1774680639853,-5000.0,0.00015613,2]
[418966138,1774680639863,-636.06,0.0001562,2]
[418966139,1774680639871,-304.0,0.00015629,2]
[418966140,1774680639881,-4157.81979043,0.00015668,2]
[418966141,1774680639890,-235.0,0.00015675,2]
[418966142,1774680639899,-2807.0,0.0001568,2]
[418966143,1774680639909,-1570.0,0.0001568,2]
[418966144,1774680639919,-161.0,0.0001568,2]
[418966145,1774680639928,-161.0,0.0001568,2]
[418966146,1774680639936,-161.0,0.0001568,2]
[418966147,1774680639946,-811.0,0.0001568,2]
[418966148,1774680639955,-4100.0,0.000157,5]
[418966149,1774680639964,-2648.02924686,0.0001572,2]
[418966150,1774680639973,-500.0,0.00015726,2]
[418966151,1774680639982,-235.0,0.00015752,2]
[418966152,1774680639991,-380.0,0.00015755,2]
[418966153,1774680640001,-235.0,0.00015784,2]
[418966154,1774680640010,-951.0,0.000158,2]
[418966155,1774680640020,-800.0,0.000158,5]
[418966156,1774680640029,-5000.0,0.000158,2]
[418966157,1774680640038,-1000.0,0.000158,2]
[418966158,1774680640047,-3384.1715763,0.000158,2]
[418966159,1774680640057,-3384.17157622,0.00015811,2]
[418966160,1774680640066,-235.0,0.00015812,2]
[418966161,1774680640075,-235.0,0.00015813,2]
[418966162,1774680640084,-466.53,0.00015822,2]
[418966163,1774680640094,-3384.17157622,0.00015822,2]
[418966164,1774680640103,-3384.17157622,0.00015833,2]
[418966165,1774680640113,-380.0,0.00015868,2]
[418966166,1774680640122,-500.0,0.00015872,2]
[418966167,1774680640131,-500.0,0.00015873,2]
[418966168,1774680640140,-235.0,0.00015873,2]
[418966169,1774680640150,-235.0,0.00015889,2]
[418966170,1774680640159,-211.11639281,0.0001589,2]
[418966171,1774680640169,-287.24806613,0.00015891,2]
[418966172,1774680640178,-2158.86,0.00015895,2]
[418966173,1774680640186,-207.1493401,0.00015899,2]
[418966174,1774680640195,-500.0,0.00015899,2]
[418966175,1774680640204,-1369.0,0.000159,5]
[418966176,1774680640213,-327835.89845253,0.000159,2]
[418966177,1774680640603,-6012.0,0.00014978,2]
[418966178,1774680640614,-312.0,0.000158,2]
[418966179,1774680640624,-435556.04416433,0.000159,2]
[418966180,1774680640635,-2228.46574512,0.000159,2]
[418966181,1774680641006,-8992.49262014,0.000159,2]
[418966182,1774680641018,-506.37642362,0.000159,2]
[418966183,1774680641029,-254.12738969,0.000159,2]
[418966184,1774680641565,496.79,0.0001378,2]
[418966185,1774680641865,802.87,0.00014078,2]
[418966187,1774680643456,-539.44516753,0.00014359,2]
[418966209,1774680646639,-281.680004,0.00014359,2]
[418966210,1774680646651,-89.89482847,0.00014359,2]
[418966211,1774680646660,-171.94066444,0.0001488,2]
[418966212,1774680646705,-561.77933556,0.0001488,2]
[418966213,1774680646715,-900.0,0.00015371,2]
[418966214,1774680646726,-600.0,0.00015676,2]
[418966215,1774680646736,-3384.17157622,0.00015844,2]
[418966216,1774680646746,-402.03,0.00015854,2]
[418966217,1774680646756,-517.34971718,0.00015899,2]
[418966218,1774680646766,-483.89505136,0.00015899,2]
[418966219,1774680646775,-116118.51536572,0.000159,2]
[418966220,1774680646787,-2661.280292,0.000159,2]
[418966221,1774680646798,-572.01969778,0.000159,2]
[418966222,1774680646809,-1893.12,0.000159,2]
[418966271,1774680779736,150.0,0.00016,120]
[418966272,1774680895442,838.82,0.00011709,2]
[418966273,1774680906801,173.0,0.00012051,2]
[418966275,1774680968547,150.0,0.00016,120]
[418966279,1774681100481,-362.75,0.00012061,2]
[418966280,1774681100510,-195.0,0.00013268,2]
[418966281,1774681100539,-2111.75338941,0.00013268,2]
[418966282,1774681100568,-250.0,0.00013268,2]
[418966283,1774681100598,-191.81,0.0001338,2]
[418966284,1774681100628,-600.0,0.00013903,2]
[418966285,1774681100658,-444.80392474,0.00014173,2]
[418966286,1774681100688,-150.0,0.00014218,2]
[418966287,1774681100718,-300.0,0.00014218,2]
[418966288,1774681100754,-287.7753717,0.00014218,2]
[418966289,1774681100990,-212.2246283,0.00014218,2]
[418966290,1774681101026,-500.0,0.00014218,2]
[418966291,1774681101060,-450.04067361,0.00014218,2]
[418966292,1774681101242,-4943.06402448,0.00014219,2]
[418966293,1774681101323,-10000.01,0.00014219,2]
[418966294,1774681106299,-10000.01,0.00014219,2]
[418966295,1774681109319,-10000.01,0.00014219,2]
[418966296,1774681109473,-10000.01,0.00014219,2]
[418966297,1774681109616,-10000.01,0.00014219,2]
[418966298,1774681162403,150.0,0.00016,120]
[418966300,1774681223705,-530.0,0.00013111,2]
[418966301,1774681223735,-313.0,0.00013111,2]
[418966302,1774681223779,-563.80060104,0.00014206,2]
[418966303,1774681223813,-300.0,0.00014218,2]
[418966304,1774681223849,-1200.0,0.00014218,2]
[418966305,1774681223879,-300.0,0.00014218,2]
[418966306,1774681223910,-150.0,0.00014218,2]
[418966307,1774681223941,-300.0,0.00014218,2]
[418966308,1774681223977,-161.1156304,0.00014218,2]
[418966309,1774681224165,-2364.17753712,0.00014219,2]
[418966310,1774681224184,-10000.01,0.00014219,2]
[418966311,1774681226565,-10000.01,0.00014219,2]
[418966312,1774681229422,-10000.01,0.00014219,2]
[418966313,1774681349125,150.0,0.00016,120]
[418966319,1774681477465,1447.48,0.000127,2]
[418966320,1774681508683,661.65,0.00012677,2]
[418966321,1774681537700,150.0,0.00016,120]
[418966322,1774681571561,554.79,0.00012032,2]
[418966323,1774681635013,520.0,0.00011059,2]
[418966324,1774681635528,398.59,0.00012026,2]
[418966325,1774681636496,208.76258561,0.00013011,2]
[418966331,1774681724879,202.02,0.00016,120]
[418966332,1774681760868,900.0,0.00011851,2]
[418966333,1774681761414,308.73741439,0.00012134,2]
[418966334,1774681761439,691.26258561,0.00012134,2]
[418966335,1774681761925,1604.14,0.00012622,2]
[418966336,1774681762461,900.0,0.0001277,2]
[418966340,1774681806167,1804.60741439,9.5e-05,3]
[418966341,1774681806195,5000.01,9.5e-05,3]
[418966342,1774681806223,5000.01,9.5e-05,3]
[418966343,1774681819694,-10000.01,9.5e-05,3]
[418966344,1774681822599,-10000.01,9.5e-05,3]
[418966350,1774681831364,-267.59634332,9.5e-05,3]
[418966351,1774681831436,-4864.16509111,9.5e-05,3]
[418966352,1774681831507,-749.67029931,9.5e-05,3]
[418966353,1774681831519,-5000.00113981,9.5e-05,3]
[418966354,1774681831530,-1611.15630401,9.5e-05,3]
[418966355,1774681831648,-48277.69212431,9.5e-05,3]
[418966359,1774681837522,-668.27750435,9.5e-05,3]
[418966360,1774681837645,-1555.98287157,9.5e-05,3]
[418966361,1774681837829,-500.0,9.5e-05,3]
[418966369,1774681839823,-422.18690882,9.5e-05,3]
[418966375,1774681840316,-47995.00118935,9.5e-05,3]
[418966376,1774681840325,-1026.0,0.000114,5]
[418966377,1774681840335,-312.0,0.00013084,2]
[418966378,1774681840344,-516.45,0.00013084,2]
[418966379,1774681840354,-150.0,0.00013119,2]
[418966380,1774681840363,-1239.13,0.00013218,2]
[418966381,1774681840372,-1900.0,0.00013407,2]
[418966382,1774681840381,-300.0,0.00013499,2]
[418966383,1774681840391,-1200.0,0.00013499,2]
[418966384,1774681840400,-7029.87228447,0.000135,7]
[418966385,1774681840409,-1300.0,0.00013775,2]
[418966386,1774681840418,-6410.18,0.00013939,2]
[418966387,1774681840427,-2008.9129,0.00014119,2]
[418966388,1774681840436,-557.02639085,0.00014121,2]
[418966389,1774681840445,-151.0,0.00014219,2]
[418966390,1774681840455,-151.31390465,0.00014219,2]
[418966391,1774681840464,-200667.0805384,0.00014219,2]
[418966392,1774681840474,-1163.05,0.00014221,2]
[418966393,1774681840484,-1651.82102844,0.00014265,2]
[418966394,1774681840493,-164.27795554,0.00014273,2]
[418966395,1774681840503,-500.0,0.00014273,2]
[418966396,1774681840512,-501.23124429,0.00014273,2]
[418966397,1774681840522,-245.41415789,0.00014273,2]
[418966398,1774681840531,-13964.54,0.00014287,2]
[418966399,1774681840540,-500.0,0.00014287,2]
[418966400,1774681840549,-1609.92,0.00014287,2]
[418966401,1774681840559,-150.0,0.000143,2]
[418966402,1774681840568,-5855.12,0.000143,2]
[418966403,1774681840577,-1903.42,0.000143,2]
[418966404,1774681840586,-557.02639081,0.00014319,2]
[418966405,1774681840596,-500.0,0.00014356,2]
[418966406,1774681840605,-500.0,0.00014356,2]
[418966407,1774681840614,-2336.2,0.00014356,2]
[418966408,1774681840623,-71457.16,0.00014356,2]
[418966409,1774681840632,-226.51347201,0.00014373,2]
[418966410,1774681840642,-4887.60323416,0.00014393,2]
[418966411,1774681840651,-1651.8210284,0.00014499,2]
[418966412,1774681840661,-1000.0,0.00014509,2]
[418966413,1774681840671,-557.02639081,0.00014516,2]
[418966414,1774681840680,-400.0,0.000147,5]
[418966415,1774681840690,-557.02639081,0.00014714,2]
[418966416,1774681840702,-1570.0,0.0001472,2]
[418966417,1774681840712,-1651.8210284,0.00014732,2]
[418966418,1774681840721,-900.0,0.000148,5]
[418966419,1774681840730,-154.46961229,0.00014824,2]
[418966420,1774681840739,-1200.0,0.00014849,2]
[418966421,1774681840748,-500.0,0.00014866,2]
[418966422,1774681840757,-839.698,0.00014892,2]
[418966423,1774681840767,-6012.0,0.00014892,2]